fUSD/lending_fUSD_20240105
["ID","MTS","AMOUNT","RATE_DAILY","PERIOD"]
[310257191,1704424295723,-500.0,0.00036986,3]
[310257192,1704424295733,-500.0,0.00036986,3]
[310257193,1704424295742,-500.0,0.00036986,3]
[310257194,1704424295751,-179.49540957,0.00036986,3]
[310257195,1704424295761,-1578.13,0.00036986,3]
[310257196,1704424295770,-500.0,0.00036986,3]
[310257197,1704424295780,-869.26,0.00036986,3]
[310257198,1704424295789,-500.0,0.00036986,3]
[310257199,1704424295799,-576.49814958,0.00036986,3]
[310257200,1704424295808,-500.0,0.00036986,3]
[310257201,1704424295817,-500.0,0.00036986,3]
[310257202,1704424295827,-601.34,0.00036986,3]
[310257203,1704424295836,-602.04,0.00036986,3]
[310257204,1704424295845,-500.0,0.00036986,3]
[310257205,1704424295856,-500.0,0.00036986,3]
[310257206,1704424295866,-500.0,0.00036986,3]
[310257207,1704424295875,-500.0,0.00036986,3]
[310257208,1704424295885,-559.1,0.00036986,3]
[310257209,1704424295895,-500.0,0.00036986,3]
[310257210,1704424295904,-500.0,0.00036986,3]
[310257211,1704424295913,-500.0,0.00036986,3]
[310257212,1704424295923,-500.0,0.00036986,3]
[310257213,1704424295932,-500.0,0.00036986,3]
[310257214,1704424296062,-500.0,0.00036986,3]
[310257215,1704424296071,-500.0,0.00036986,3]
[310257216,1704424296080,-500.0,0.00036986,3]
[310257217,1704424296090,-521.94394264,0.00036986,3]
[310257218,1704424296099,-4769.97,0.00036986,3]
[310257219,1704424296109,-524.59960528,0.00036986,3]
[310257220,1704424296118,-500.0,0.00036986,3]
[310257221,1704424296128,-565.17,0.00036986,3]
[310257222,1704424296137,-500.0,0.00036986,3]
[310257223,1704424296146,-2681.68,0.00036986,3]
[310257224,1704424296155,-3006.36,0.00036986,3]
[310257225,1704424296164,-448.94558648,0.00036986,3]
[310257226,1704424296173,-500.0,0.00036986,3]
[310257227,1704424296183,-774.17,0.00036986,3]
[310257228,1704424296192,-500.0,0.00036986,3]
[310257229,1704424296201,-500.0,0.00036986,3]
[310257230,1704424296210,-643.43182595,0.00036986,3]
[310257231,1704424296220,-776.16,0.00036986,3]
[310257232,1704424296230,-1909.11,0.00036986,3]
[310257233,1704424296239,-1238.67,0.00036986,3]
[310257234,1704424296249,-529.17,0.00036986,3]
[310257235,1704424296258,-3090.15,0.00036986,3]
[310257236,1704424296267,-313.21108118,0.00036986,3]
[310257237,1704424296276,-500.0,0.00036986,3]
[310257238,1704424296285,-500.0,0.00036986,3]
[310257239,1704424296294,-5012.71,0.00036986,3]
[310257240,1704424296304,-500.0,0.00036986,3]
[310257241,1704424296313,-1857.63,0.00036986,3]
[310257242,1704424296323,-4528.66,0.00036986,3]
[310257243,1704424296333,-500.0,0.00036986,3]
[310257244,1704424296342,-704.83,0.00036986,3]
[310257245,1704424296352,-1953.12,0.00036986,3]
[310257246,1704424296362,-2812.81,0.00036986,3]
[310257247,1704424296371,-570.54526268,0.00036986,3]
[310257248,1704424296381,-500.0,0.00036986,3]
[310257249,1704424296391,-778.9,0.00036986,3]
[310257250,1704424296400,-1569.53,0.00036986,3]
[310257251,1704424296409,-500.0,0.00036986,3]
[310257252,1704424296419,-1388.55,0.00036986,3]
[310257253,1704424296428,-500.0,0.00036986,3]
[310257254,1704424296438,-500.0,0.00036986,3]
[310257255,1704424296447,-500.0,0.00036986,3]
[310257256,1704424296457,-971.61,0.00036986,3]
[310257257,1704424296468,-2118.07,0.00036986,3]
[310257258,1704424296478,-485.66759246,0.00036986,3]
[310257259,1704424296487,-500.0,0.00036986,3]
[310257260,1704424296497,-1026.23,0.00036986,3]
[310257261,1704424296506,-500.0,0.00036986,3]
[310257262,1704424296516,-528.77,0.00036986,3]
[310257263,1704424296525,-747.51,0.00036986,3]
[310257264,1704424296535,-500.0,0.00036986,3]
[310257265,1704424296544,-500.0,0.00036986,3]
[310257266,1704424296554,-1231.35,0.00036986,3]
[310257267,1704424296563,-500.0,0.00036986,3]
[310257268,1704424296573,-1256.48,0.00036986,3]
[310257269,1704424296582,-500.0,0.00036986,3]
[310257270,1704424296591,-2582.67,0.00036986,3]
[310257271,1704424296600,-1321.69,0.00036986,3]
[310257272,1704424296610,-985.31,0.00036986,3]
[310257273,1704424296619,-500.0,0.00036986,3]
[310257274,1704424296629,-804.83,0.00036986,3]
[310257275,1704424296639,-672.09,0.00036986,3]
[310257276,1704424296648,-500.0,0.00036986,3]
[310257277,1704424296657,-500.0,0.00036986,3]
[310257278,1704424296667,-1836.89,0.00036986,3]
[310257279,1704424296676,-500.0,0.00036986,3]
[310257280,1704424296686,-1010.49,0.00036986,3]
[310257281,1704424296695,-500.0,0.00036986,3]
[310257282,1704424296705,-762.87,0.00036986,3]
[310257283,1704424296714,-500.0,0.00036986,3]
[310257284,1704424296724,-786.79,0.00036986,3]
[310257285,1704424296734,-5862.64,0.00036986,3]
[310257286,1704424296743,-500.0,0.00036986,3]
[310257287,1704424296754,-934.12,0.00036986,3]
[310257288,1704424296764,-1785.52,0.00036986,3]
[310257289,1704424296774,-322.36385196,0.00036986,3]
[310257290,1704424296787,-500.0,0.00036986,3]
[310257291,1704424296795,-912.64,0.00036986,3]
[310257292,1704424296805,-808.85,0.00036986,3]
[310257293,1704424296815,-882.36,0.00036986,3]
[310257294,1704424296825,-1259.24,0.00036986,3]
[310257295,1704424296835,-13869.62,0.00036986,3]
[310257296,1704424296844,-500.0,0.00036986,3]
[310257297,1704424296853,-500.0,0.00036986,3]
[310257298,1704424296863,-500.0,0.00036986,3]
[310257299,1704424296872,-3101.88,0.00036986,3]
[310257300,1704424296881,-500.0,0.00036986,3]
[310257301,1704424296890,-1091.42,0.00036986,3]
[310257302,1704424296899,-785.92,0.00036986,3]
[310257303,1704424296909,-586.04,0.00036986,3]
[310257304,1704424296919,-500.0,0.00036986,3]
[310257305,1704424296931,-500.0,0.00036986,3]
[310257306,1704424296940,-1268.16,0.00036986,3]
[310257307,1704424296952,-1189.46,0.00036986,3]
[310257308,1704424296961,-1481.99,0.00036986,3]
[310257309,1704424296971,-606.27,0.00036986,3]
[310257310,1704424296983,-593.38,0.00036986,3]
[310257311,1704424296992,-500.0,0.00036986,3]
[310257312,1704424297002,-500.0,0.00036986,3]
[310257313,1704424297014,-1085.76,0.00036986,3]
[310257314,1704424297025,-1106.51,0.00036986,3]
[310257315,1704424297035,-500.0,0.00036986,3]
[310257316,1704424297046,-500.0,0.00036986,3]
[310257317,1704424297056,-500.0,0.00036986,3]
[310257318,1704424297065,-1351.81,0.00036986,3]
[310257319,1704424297075,-500.0,0.00036986,3]
[310257320,1704424297085,-179.36976091,0.00036986,3]
[310257321,1704424297096,-500.0,0.00036986,3]
[310257322,1704424297107,-500.0,0.00036986,3]
[310257323,1704424297119,-545.65,0.00036986,3]
[310257324,1704424297130,-500.0,0.00036986,3]
[310257325,1704424297139,-765.09,0.00036986,3]
[310257326,1704424297149,-537.24,0.00036986,3]
[310257327,1704424297160,-500.0,0.00036986,3]
[310257328,1704424297169,-1151.66,0.00036986,3]
[310257329,1704424297178,-500.0,0.00036986,3]
[310257330,1704424297189,-779.5,0.00036986,3]
[310257331,1704424297198,-1306.66,0.00036986,3]
[310257332,1704424297207,-572.88,0.00036986,3]
[310257333,1704424297217,-500.0,0.00036986,3]
[310257334,1704424297226,-500.0,0.00036986,3]
[310257335,1704424297235,-500.0,0.00036986,3]
[310257336,1704424297245,-150.08930569,0.00036986,3]
[310257337,1704424297254,-8188.31,0.00036986,3]
[310257338,1704424297265,-500.0,0.00036986,3]
[310257339,1704424297274,-500.0,0.00036986,3]
[310257340,1704424297283,-1063.95,0.00036986,3]
[310257341,1704424297293,-500.0,0.00036986,3]
[310257342,1704424297304,-798.53,0.00036986,3]
[310257343,1704424297314,-509.55013023,0.00036986,3]
[310257344,1704424297324,-500.0,0.00036986,3]
[310257345,1704424297334,-528.36,0.00036986,3]
[310257346,1704424297346,-500.0,0.00036986,3]
[310257347,1704424297355,-920.16,0.00036986,3]
[310257348,1704424297365,-500.0,0.00036986,3]
[310257349,1704424297374,-594.66380823,0.00036986,3]
[310257350,1704424297385,-500.0,0.00036986,3]
[310257351,1704424297395,-500.0,0.00036986,3]
[310257352,1704424297405,-663.44,0.00036986,3]
[310257353,1704424297415,-1622.28,0.00036986,3]
[310257354,1704424297425,-190.5,0.00036986,3]
[310257355,1704424297434,-500.0,0.00036986,3]
[310257356,1704424297444,-711.28,0.00036986,3]
[310257357,1704424297453,-500.0,0.00036986,3]
[310257358,1704424297464,-439.53265568,0.00036986,3]
[310257359,1704424297474,-500.0,0.00036986,3]
[310257360,1704424297484,-502.3,0.00036986,3]
[310257361,1704424297494,-2080.27,0.00036986,3]
[310257362,1704424297503,-835.35,0.00036986,3]
[310257363,1704424297513,-500.0,0.00036986,3]
[310257364,1704424297523,-500.0,0.00036986,3]
[310257365,1704424297532,-500.0,0.00036986,3]
[310257366,1704424297541,-2415.78,0.00036986,3]
[310257367,1704424297551,-500.0,0.00036986,3]
[310257368,1704424297560,-558.41,0.00036986,3]
[310257369,1704424297570,-522.56314356,0.00036986,3]
[310257370,1704424297579,-500.0,0.00036986,3]
[310257371,1704424297588,-375.20374761,0.00036986,3]
[310257372,1704424297598,-500.0,0.00036986,3]
[310257373,1704424297608,-500.0,0.00036986,3]
[310257374,1704424297618,-500.0,0.00036986,3]
[310257375,1704424297628,-500.0,0.00036986,3]
[310257376,1704424297637,-536.22896399,0.00036986,3]
[310257377,1704424297647,-500.0,0.00036986,3]
[310257378,1704424297657,-500.0,0.00036986,3]
[310257379,1704424297666,-500.0,0.00036986,3]
[310257380,1704424297675,-542.19,0.00036986,3]
[310257381,1704424297684,-500.0,0.00036986,3]
[310257382,1704424297693,-500.0,0.00036986,3]
[310257383,1704424297702,-500.0,0.00036986,3]
[310257384,1704424297712,-500.0,0.00036986,3]
[310257385,1704424297723,-500.0,0.00036986,3]
[310257386,1704424297733,-1511.27,0.00036986,3]
[310257387,1704424297744,-500.0,0.00036986,3]
[310257388,1704424297755,-4392.23,0.00036986,3]
[310257389,1704424297764,-1318.19,0.00036986,3]
[310257390,1704424297773,-500.0,0.00036986,3]
[310257391,1704424297782,-621.95462567,0.00036986,3]
[310257392,1704424297792,-500.0,0.00036986,3]
[310257393,1704424297802,-500.0,0.00036986,3]
[310257394,1704424297812,-868.93,0.00036986,3]
[310257395,1704424297823,-308.92091342,0.00037,4]
[310257396,1704424297833,-214011.22036133,0.00037,7]
[310257397,1704424297842,-500.0,0.00037,3]
[310257398,1704424297851,-1405.39,0.00037,7]
[310257399,1704424297861,-29015.0,0.00037,2]
[310257400,1704424297870,-605.04284187,0.00037,4]
[310257401,1704424297879,-165.6909776,0.00037,2]
[310257402,1704424297889,-1000.0,0.00037006,2]
[310257403,1704424297898,-2000.0,0.00037075,2]
[310257404,1704424297908,-409.62,0.00037075,2]
[310257405,1704424297917,-157.40105,0.00037098,2]
[310257406,1704424297926,-1528.41958395,0.00037111,2]
[310257407,1704424297935,-188.44,0.00037183,120]
[310257408,1704424297944,-154.87,0.00037213,2]
[310257409,1704424297954,-185.0,0.00037224,2]
[310257410,1704424297963,-809.29907843,0.0003724,4]
[310257411,1704424297973,-1000.0,0.00037255,2]
[310257412,1704424297982,-150.0,0.00037259,2]
[310257413,1704424297991,-180.69,0.0003726,2]
[310257414,1704424298000,-503.60893026,0.0003726,3]
[310257415,1704424298009,-500.0,0.0003726,3]
[310257416,1704424298018,-500.0,0.0003726,3]
[310257417,1704424298028,-500.0,0.0003726,2]
[310257418,1704424298037,-406.79094177,0.0003726,3]
[310257419,1704424298046,-500.0,0.0003726,3]
[310257420,1704424298055,-500.0,0.0003726,3]
[310257421,1704424298065,-519.67249958,0.0003726,3]
[310257422,1704424298074,-760.75,0.0003726,3]
[310257423,1704424298083,-500.0,0.0003726,3]
[310257424,1704424298092,-500.0,0.0003726,3]
[310257425,1704424298101,-500.0,0.0003726,3]
[310257426,1704424298111,-500.0,0.0003726,3]
[310257427,1704424298120,-583.53,0.0003726,3]
[310257428,1704424298129,-500.0,0.0003726,3]
[310257429,1704424298139,-530.68095757,0.0003726,3]
[310257430,1704424298148,-500.0,0.0003726,3]
[310257431,1704424298158,-500.0,0.0003726,3]
[310257432,1704424298167,-500.0,0.0003726,3]
[310257433,1704424298176,-500.0,0.0003726,3]
[310257434,1704424298186,-500.0,0.0003726,3]
[310257435,1704424298195,-500.0,0.0003726,3]
[310257436,1704424298204,-509.17650747,0.0003726,3]
[310257437,1704424298214,-669.12,0.0003726,3]
[310257438,1704424298223,-500.0,0.0003726,3]
[310257439,1704424298232,-500.0,0.0003726,3]
[310257440,1704424298241,-500.0,0.0003726,3]
[310257441,1704424298251,-524.94668086,0.0003726,3]
[310257442,1704424298260,-500.0,0.0003726,3]
[310257443,1704424298269,-530.89,0.0003726,3]
[310257444,1704424298278,-500.0,0.0003726,3]
[310257445,1704424298288,-500.0,0.0003726,3]
[310257446,1704424298298,-500.0,0.0003726,3]
[310257447,1704424298307,-500.0,0.0003726,3]
[310257448,1704424298316,-343.87671656,0.0003726,3]
[310257449,1704424298326,-500.0,0.0003726,3]
[310257450,1704424298336,-500.0,0.0003726,3]
[310257451,1704424298345,-500.0,0.0003726,3]
[310257452,1704424298354,-246.90753094,0.0003726,3]
[310257453,1704424298363,-500.0,0.0003726,3]
[310257454,1704424298373,-500.0,0.0003726,3]
[310257455,1704424298382,-500.0,0.0003726,3]
[310257456,1704424298392,-500.0,0.0003726,3]
[310257457,1704424298401,-500.0,0.0003726,3]
[310257458,1704424298411,-277.84693049,0.0003726,3]
[310257459,1704424298420,-500.0,0.0003726,3]
[310257460,1704424298430,-500.0,0.0003726,3]
[310257461,1704424298440,-500.0,0.0003726,3]
[310257462,1704424298449,-500.0,0.0003726,3]
[310257463,1704424298459,-523.13,0.0003726,3]
[310257464,1704424298471,-500.0,0.0003726,3]
[310257465,1704424298481,-500.0,0.0003726,3]
[310257466,1704424298490,-500.0,0.0003726,3]
[310257467,1704424298499,-500.0,0.0003726,3]
[310257468,1704424298508,-640.55922624,0.0003726,3]
[310257469,1704424298519,-500.0,0.0003726,3]
[310257470,1704424298528,-500.0,0.0003726,3]
[310257471,1704424298537,-500.0,0.0003726,3]
[310257472,1704424298547,-500.0,0.0003726,3]
[310257473,1704424298556,-500.0,0.0003726,3]
[310257474,1704424298566,-500.0,0.0003726,3]
[310257475,1704424298575,-500.0,0.0003726,3]
[310257476,1704424298583,-500.0,0.0003726,3]
[310257477,1704424298593,-405.80857455,0.0003726,3]
[310257478,1704424298602,-518.02959031,0.0003726,3]
[310257479,1704424298612,-500.0,0.0003726,3]
[310257480,1704424298621,-500.0,0.0003726,3]
[310257481,1704424298630,-500.0,0.0003726,3]
[310257482,1704424298639,-528.79079623,0.0003726,3]
[310257483,1704424298648,-500.0,0.0003726,3]
[310257484,1704424298657,-500.0,0.0003726,3]
[310257485,1704424298666,-500.0,0.0003726,3]
[310257486,1704424298675,-500.0,0.0003726,3]
[310257487,1704424298684,-419.24713014,0.0003726,3]
[310257488,1704424298693,-500.0,0.0003726,3]
[310257489,1704424298702,-543.25332208,0.0003726,3]
[310257490,1704424298713,-500.0,0.0003726,3]
[310257491,1704424298723,-500.0,0.0003726,3]
[310257492,1704424298733,-500.0,0.0003726,3]
[310257493,1704424298743,-527.38598852,0.0003726,3]
[310257494,1704424298754,-500.0,0.0003726,3]
[310257495,1704424298764,-500.0,0.0003726,3]
[310257496,1704424298773,-500.0,0.0003726,3]
[310257497,1704424298782,-500.0,0.0003726,3]
[310257498,1704424298791,-500.0,0.0003726,3]
[310257499,1704424298800,-176.77356635,0.0003726,3]
[310257500,1704424298809,-500.0,0.0003726,3]
[310257501,1704424298818,-500.0,0.0003726,3]
[310257502,1704424298828,-390.31357488,0.0003726,3]
[310257503,1704424298837,-500.0,0.0003726,3]
[310257504,1704424298846,-500.0,0.0003726,3]
[310257505,1704424298856,-500.0,0.0003726,3]
[310257506,1704424298865,-500.0,0.0003726,3]
[310257507,1704424298874,-954.7,0.0003726,3]
[310257508,1704424298883,-500.0,0.0003726,3]
[310257509,1704424298892,-500.0,0.0003726,3]
[310257510,1704424298901,-416.46590091,0.0003726,3]
[310257511,1704424299051,-578.47265603,0.0003726,3]
[310257512,1704424299060,-500.0,0.0003726,3]
[310257513,1704424299069,-500.0,0.0003726,3]
[310257514,1704424299079,-500.0,0.0003726,3]
[310257515,1704424299089,-528.48409411,0.0003726,3]
[310257516,1704424299098,-500.0,0.0003726,3]
[310257517,1704424299107,-439.60755421,0.0003726,3]
[310257518,1704424299118,-500.0,0.0003726,3]
[310257519,1704424299127,-500.0,0.0003726,3]
[310257520,1704424299136,-537.69850998,0.0003726,3]
[310257521,1704424299146,-500.0,0.0003726,3]
[310257522,1704424299154,-500.0,0.0003726,3]
[310257523,1704424299164,-500.0,0.0003726,3]
[310257524,1704424299172,-366.76799971,0.0003726,3]
[310257525,1704424299182,-181.65026655,0.0003726,3]
[310257526,1704424299191,-500.0,0.0003726,3]
[310257527,1704424299200,-500.0,0.0003726,3]
[310257528,1704424299209,-500.0,0.0003726,3]
[310257529,1704424299218,-500.0,0.0003726,3]
[310257530,1704424299227,-500.0,0.0003726,3]
[310257531,1704424299236,-500.0,0.0003726,3]
[310257532,1704424299245,-500.0,0.0003726,3]
[310257533,1704424299254,-500.0,0.0003726,3]
[310257534,1704424299264,-500.0,0.0003726,3]
[310257535,1704424299273,-500.0,0.0003726,3]
[310257536,1704424299282,-254.24207334,0.0003726,3]
[310257537,1704424299291,-500.0,0.0003726,3]
[310257538,1704424299301,-500.0,0.0003726,3]
[310257539,1704424299310,-500.0,0.0003726,3]
[310257540,1704424299321,-500.0,0.0003726,3]
[310257541,1704424299331,-500.0,0.0003726,3]
[310257542,1704424299340,-500.0,0.0003726,3]
[310257543,1704424299350,-500.0,0.0003726,3]
[310257544,1704424299359,-500.0,0.0003726,3]
[310257545,1704424299372,-642.38983507,0.0003726,3]
[310257546,1704424299381,-500.0,0.0003726,3]
[310257547,1704424299390,-500.0,0.0003726,3]
[310257548,1704424299400,-330.76260408,0.0003726,3]
[310257549,1704424299409,-500.0,0.0003726,3]
[310257550,1704424299419,-500.0,0.0003726,3]
[310257551,1704424299428,-500.0,0.0003726,3]
[310257552,1704424299437,-500.0,0.0003726,3]
[310257553,1704424299446,-874.14,0.0003726,3]
[310257554,1704424299456,-500.0,0.0003726,3]
[310257555,1704424299466,-500.0,0.0003726,3]
[310257556,1704424299475,-500.0,0.0003726,3]
[310257557,1704424299484,-500.0,0.0003726,3]
[310257558,1704424299493,-500.0,0.0003726,3]
[310257559,1704424299503,-150.0,0.0003726,3]
[310257560,1704424299512,-500.0,0.0003726,3]
[310257561,1704424299520,-500.0,0.0003726,3]
[310257562,1704424299529,-611.95604915,0.0003726,3]
[310257563,1704424299538,-531.15745129,0.0003726,3]
[310257564,1704424299547,-500.0,0.0003726,3]
[310257565,1704424299558,-500.0,0.0003726,3]
[310257566,1704424299567,-500.0,0.0003726,3]
[310257567,1704424299576,-500.0,0.0003726,3]
[310257568,1704424299586,-500.0,0.0003726,3]
[310257569,1704424299595,-500.0,0.0003726,3]
[310257570,1704424299604,-500.0,0.0003726,3]
[310257571,1704424299614,-500.0,0.0003726,3]
[310257572,1704424299623,-500.0,0.0003726,3]
[310257573,1704424299633,-500.0,0.0003726,3]
[310257574,1704424299642,-500.0,0.0003726,3]
[310257575,1704424299651,-556.0,0.0003726,3]
[310257576,1704424299660,-500.0,0.0003726,3]
[310257577,1704424299669,-500.0,0.0003726,3]
[310257578,1704424299678,-547.85,0.0003726,3]
[310257579,1704424299687,-500.0,0.0003726,3]
[310257580,1704424299696,-552.35890674,0.0003726,3]
[310257581,1704424299705,-181.27813575,0.0003726,3]
[310257582,1704424299714,-270.56012289,0.0003726,3]
[310257583,1704424299723,-500.0,0.0003726,3]
[310257584,1704424299732,-500.0,0.0003726,3]
[310257585,1704424299741,-545.72647889,0.0003726,3]
[310257586,1704424299750,-500.0,0.0003726,3]
[310257587,1704424299760,-500.0,0.0003726,3]
[310257588,1704424299770,-500.0,0.0003726,3]
[310257589,1704424299779,-500.0,0.0003726,3]
[310257590,1704424299788,-500.0,0.0003726,3]
[310257591,1704424299797,-500.0,0.0003726,3]
[310257592,1704424299807,-307.84609663,0.0003726,3]
[310257593,1704424299816,-500.0,0.0003726,3]
[310257594,1704424299826,-533.93187242,0.0003726,3]
[310257595,1704424299835,-220.28259805,0.0003726,3]
[310257596,1704424299845,-500.0,0.0003726,3]
[310257597,1704424299854,-234.09029443,0.0003726,3]
[310257598,1704424299864,-500.0,0.0003726,3]
[310257599,1704424299879,-500.0,0.0003726,3]
[310257600,1704424299909,-500.0,0.0003726,3]
[310257601,1704424299918,-593.83,0.0003726,3]
[310257602,1704424299927,-500.0,0.0003726,3]
[310257603,1704424299936,-3647.06,0.0003726,3]
[310257604,1704424299945,-500.0,0.0003726,3]
[310257605,1704424299954,-643.55564489,0.0003726,3]
[310257606,1704424299963,-523.05,0.0003726,3]
[310257607,1704424299972,-569.6,0.0003726,3]
[310257608,1704424299981,-500.0,0.0003726,3]
[310257609,1704424299990,-629.92313968,0.0003726,3]
[310257610,1704424299999,-500.0,0.0003726,3]
[310257611,1704424300008,-1578.13,0.0003726,3]
[310257612,1704424300018,-869.26,0.0003726,3]
[310257613,1704424300027,-415.92875453,0.0003726,3]
[310257614,1704424300036,-600.95142437,0.0003726,3]
[310257615,1704424300045,-176.9094128,0.0003726,3]
[310257616,1704424300056,-358.30472484,0.0003726,3]
[310257617,1704424300066,-601.34,0.0003726,3]
[310257618,1704424300075,-602.04,0.0003726,3]
[310257619,1704424300085,-500.0,0.0003726,3]
[310257620,1704424300094,-530.98189548,0.0003726,3]
[310257621,1704424300104,-500.0,0.0003726,3]
[310257622,1704424300115,-500.0,0.0003726,3]
[310257623,1704424300124,-559.1,0.0003726,3]
[310257624,1704424300133,-500.0,0.0003726,3]
[310257625,1704424300142,-205.95576529,0.0003726,3]
[310257626,1704424300152,-500.0,0.0003726,3]
[310257627,1704424300160,-500.0,0.0003726,3]
[310257628,1704424300170,-500.0,0.0003726,3]
[310257629,1704424300179,-500.0,0.0003726,3]
[310257630,1704424300188,-425.62035932,0.0003726,3]
[310257631,1704424300198,-500.0,0.0003726,3]
[310257632,1704424300208,-4769.97,0.0003726,3]
[310257633,1704424300219,-500.0,0.0003726,3]
[310257634,1704424300228,-565.17,0.0003726,3]
[310257635,1704424300237,-500.0,0.0003726,3]
[310257636,1704424300246,-2681.68,0.0003726,3]
[310257637,1704424300257,-3006.36,0.0003726,3]
[310257638,1704424300266,-458.37487206,0.0003726,3]
[310257639,1704424300275,-774.17,0.0003726,3]
[310257640,1704424300284,-500.0,0.0003726,3]
[310257641,1704424300293,-500.0,0.0003726,3]
[310257642,1704424300303,-776.16,0.0003726,3]
[310257643,1704424300313,-1909.11,0.0003726,3]
[310257644,1704424300322,-1238.67,0.0003726,3]
[310257645,1704424300332,-529.17,0.0003726,3]
[310257646,1704424300342,-3090.15,0.0003726,3]
[310257647,1704424300352,-500.0,0.0003726,3]
[310257648,1704424300362,-586.40999593,0.0003726,3]
[310257649,1704424300372,-5012.71,0.0003726,3]
[310257650,1704424300381,-500.0,0.0003726,3]
[310257651,1704424300390,-1857.63,0.0003726,3]
[310257652,1704424300399,-4528.66,0.0003726,3]
[310257653,1704424300409,-396.50149259,0.0003726,3]
[310257654,1704424300418,-704.83,0.0003726,3]
[310257655,1704424300428,-1953.12,0.0003726,3]
[310257656,1704424300437,-2812.81,0.0003726,3]
[310257657,1704424300447,-500.0,0.0003726,3]
[310257658,1704424300457,-778.9,0.0003726,3]
[310257659,1704424300466,-1569.53,0.0003726,3]
[310257660,1704424300476,-500.0,0.0003726,3]
[310257661,1704424300486,-1388.55,0.0003726,3]
[310257662,1704424300496,-500.0,0.0003726,3]
[310257663,1704424300506,-500.0,0.0003726,3]
[310257664,1704424300515,-500.0,0.0003726,3]
[310257665,1704424300525,-971.61,0.0003726,3]
[310257666,1704424300534,-2118.07,0.0003726,3]
[310257667,1704424300544,-500.0,0.0003726,3]
[310257668,1704424300554,-1026.23,0.0003726,3]
[310257669,1704424300564,-500.0,0.0003726,3]
[310257670,1704424300574,-528.77,0.0003726,3]
[310257671,1704424300583,-747.51,0.0003726,3]
[310257672,1704424300592,-500.0,0.0003726,3]
[310257673,1704424300601,-500.0,0.0003726,3]
[310257674,1704424300610,-1231.35,0.0003726,3]
[310257675,1704424300621,-500.0,0.0003726,3]
[310257676,1704424300630,-1256.48,0.0003726,3]
[310257677,1704424300639,-500.0,0.0003726,3]
[310257678,1704424300651,-2582.67,0.0003726,3]
[310257679,1704424300662,-1321.69,0.0003726,3]
[310257680,1704424300670,-985.31,0.0003726,3]
[310257681,1704424300679,-500.0,0.0003726,3]
[310257682,1704424300688,-804.83,0.0003726,3]
[310257683,1704424300697,-672.09,0.0003726,3]
[310257684,1704424300707,-500.0,0.0003726,3]
[310257685,1704424300716,-500.0,0.0003726,3]
[310257686,1704424300725,-1836.89,0.0003726,3]
[310257687,1704424300734,-500.0,0.0003726,3]
[310257688,1704424300743,-1010.49,0.0003726,3]
[310257689,1704424300752,-500.0,0.0003726,3]
[310257690,1704424300761,-762.87,0.0003726,3]